[Event "Israeli Open Championship 2019"]
[Site "Jerusalem"]
[Date "2019.12.12"]
[Round "1.14"]
[White "Cohen, Moshe"]
[Black "Cohen Revivo, Shoham"]
[Result "0-1"]
[ECO "C10"]
[WhiteElo "1697"]
[BlackElo "2261"]
[Annotator "ChessBase"]
[PlyCount "122"]
[EventDate "2019.12.12"]
[EventType "swiss"]
[EventCountry "ISR"]
[SourceTitle "playchess.com"]
[Source "ChessBase"]
[SourceQuality "1"]
[TimeControl "5400+30"]

1. e4 {[%emt 0:00:00]} e6 {[%emt 0:00:00]} 2. Nc3 {[%emt 0:00:00]} d5 {[%emt 0:00:04]} 3. Nf3 {[%emt 0:00:15]} c5 {[%emt 0:00:19]} 4. exd5 {[%emt 0:00:27]} exd5 {[%emt 0:00:06]} 5. d4 {[%emt 0:00:13]} Nf6 {[%emt 0:00:06]} 6. Bg5 {[%emt 0:01:24]} Be7 {[%emt 0:01:59]} 7. Bb5+ {[%emt 0:02:06]} Nc6 {[%emt 0:00:28]} 8. Ne5 {[%emt 0:05:45]} Qd6 {[%emt 0:04:04]} 9. O-O {[%emt 0:02:37]} O-O {[%emt 0:00:25]} 10. Bxc6 {[%emt 0:01:09]} bxc6 {[%emt 0:00:10]} 11. Bf4 {[%emt 0:03:27]} cxd4 {[%emt 0:01:53]} 12. Ng6 {[%emt 0:00:43]} Qd8 {[%emt 0:00:08]} 13. Nxe7+ {[%emt 0:00:12]} Qxe7 {[%emt 0:00:06]} 14. Qxd4 {[%emt 0:00:24]} Re8 {[%emt 0:03:08]} 15. h3 {[%emt 0:02:39]} c5 {[%emt 0:02:30]} 16. Qd3 {[%emt 0:05:45]} d4 {[%emt 0:03:37]} 17. Nb5 {[%emt 0:01:01]} Ba6 {[%emt 0:00:07]} 18. a4 {[%emt 0:00:36]} Nd5 {[%emt 0:00:35]} 19. Qf3 {[%emt 0:08:00]} Rad8 {[%emt 0:02:47]} 20. Rae1 {[%emt 0:07:08]} Qxe1 {[%emt 0:00:10]} 21. Rxe1 {[%emt 0:00:08]} Rxe1+ {[%emt 0:00:05]} 22. Kh2 {[%emt 0:00:15]} Bxb5 {[%emt 0:01:11]} 23. axb5 {[%emt 0:01:37]} Nxf4 {[%emt 0:00:52]} 24. Qxf4 {[%emt 0:00:12]} Rc8 {[%emt 0:03:11]} 25. Qf5 {[%emt 0:02:57]} Re6 {[%emt 0:00:20]} 26. Qd5 {[%emt 0:01:41]} Rb6 {[%emt 0:02:42]} 27. c3 {[%emt 0:10:00]} dxc3 {[%emt 0:01:01]} 28. Qd7 {[%emt 0:03:51]} Rcb8 {[%emt 0:00:07]} 29. bxc3 {[%emt 0:00:13]} R6b7 {[%emt 0:02:47]} 30. Qc6 {[%emt 0:03:54]} Rxb5 {[%emt 0:00:15]} 31. Qa6 {[%emt 0:00:08]} R8b7 {[%emt 0:01:23]} 32. c4 {[%emt 0:02:17]} R5b6 {[%emt 0:00:14]} 33. Qa5 {[%emt 0:00:25]} Rc7 {[%emt 0:00:14]} 34. f4 {[%emt 0:00:18]} h6 {[%emt 0:00:40]} 35. f5 {[%emt 0:00:30]} Rbc6 {[%emt 0:00:56]} 36. h4 {[%emt 0:03:16]} a6 {[%emt 0:00:58]} 37. f6 {[%emt 0:06:35]} gxf6 {[%emt 0:00:06]} 38. Qc3 {[%emt 0:02:32]} Re7 {[%emt 0:04:50]} 39. Qg3+ {[%emt 0:03:57]} Kf8 {[%emt 0:00:20]} 40. Qf4 {[%emt 0:00:53]} f5 {[%emt 0:00:16]} 41. Qxf5 {[%emt 0:00:14]} Ree6 {[%emt 0:00:36]} 42. Qd3 {[%emt 0:03:22]} Rcd6 {[%emt 0:00:08]} 43. Qf3 {[%emt 0:01:06]} Rd4 {[%emt 0:00:27]} 44. Qb3 {[%emt 0:04:04]} Rxh4+ {[%emt 0:00:12]} 45. Kg3 {[%emt 0:00:09]} Rhe4 {[%emt 0:00:39]} 46. Qb8+ {[%emt 0:01:51]} Kg7 {[%emt 0:00:09]} 47. Kh2 {[%emt 0:00:22]} Rg4 {[%emt 0:02:25]} 48. Qb2+ {[%emt 0:00:45]} Kg8 {[%emt 0:01:15]} 49. Qb8+ {[%emt 0:00:16]} Kh7 {[%emt 0:00:20]} 50. Qc7 {[%emt 0:00:56]} Kg7 {[%emt 0:01:56]} 51. Qxc5 {[%emt 0:00:16]} Re2 {[%emt 0:02:19]} 52. Qd6 {[%emt 0:02:12]} Rexg2+ {[%emt 0:00:54]} 53. Kh3 {[%emt 0:00:34]} R4g3+ {[%emt 0:00:41]} 54. Kh4 {[%emt 0:01:02]} Rg6 {[%emt 0:00:15]} 55. Qe5+ {[%emt 0:01:29]} Kh7 {[%emt 0:00:08]} 56. c5 {[%emt 0:01:12]} R2g5 {[%emt 0:00:58]} 57. Qf4 {[%emt 0:03:29]} Kg8 {[%emt 0:01:59]} 58. Qb8+ {[%emt 0:00:29]} Kg7 {[%emt 0:00:14]} 59. Qb2+ {[%emt 0:00:37]} Kh7 {[%emt 0:01:53]} 60. Qc2 {[%emt 0:00:20]} Rg2 {[%emt 0:00:13]} 61. Qc4 {[%emt 0:00:28]} Rh2# {[%emt 0:00:08]} 0-1

[Event "Israeli Open Championship 2019"]
[Site "Jerusalem"]
[Date "2019.12.12"]
[Round "1.15"]
[White "Lahav, Michal"]
[Black "Lukovski, Lev"]
[Result "1-0"]
[ECO "B07"]
[WhiteElo "2244"]
[BlackElo "1697"]
[Annotator "ChessBase"]
[PlyCount "81"]
[EventDate "2019.12.12"]
[EventType "swiss"]
[EventCountry "ISR"]
[SourceTitle "playchess.com"]
[Source "ChessBase"]
[SourceQuality "1"]
[TimeControl "5400+30"]

1. e4 {[%emt 0:00:00]} d6 {[%emt 0:00:00]} 2. d4 {[%emt 0:00:55]} Nf6 {[%emt 0:00:02]} 3. Nc3 {[%emt 0:00:07]} Nbd7 {[%emt 0:00:17]} 4. g3 {[%emt 0:01:12]} e5 {[%emt 0:00:23]} 5. Nge2 {[%emt 0:00:04]} c6 {[%emt 0:01:57]} 6. Bg2 {[%emt 0:00:15]} Be7 {[%emt 0:00:36]} 7. O-O {[%emt 0:01:54]} O-O {[%emt 0:01:57]} 8. a4 {[%emt 0:02:22]} a5 {[%emt 0:00:14]} 9. h3 {[%emt 0:00:39]} Re8 {[%emt 0:03:13]} 10. Be3 {[%emt 0:02:44]} Bf8 {[%emt 0:04:19]} 11. g4 {[%emt 0:24:59]} h6 {[%emt 0:04:56]} 12. Ng3 {[%emt 0:00:43]} exd4 {[%emt 0:05:00]} 13. Bxd4 {[%emt 0:02:15]} Ne5 {[%emt 0:02:05]} 14. Nce2 {[%emt 0:07:35]} Be6 {[%emt 0:08:02]} 15. b3 {[%emt 0:05:06]} c5 {[%emt 0:04:05]} 16. Bc3 {[%emt 0:06:01]} Qc7 {[%emt 0:08:10]} 17. f4 {[%emt 0:04:20]} Nc6 {[%emt 0:04:09]} 18. Bxf6 {[%emt 0:00:23]} gxf6 {[%emt 0:00:15]} 19. Nh5 {[%emt 0:00:06]} Be7 {[%emt 0:02:29]} 20. Qd2 {[%emt 0:02:52]} Kh7 {[%emt 0:01:21]} 21. e5 {[%emt 0:16:36]} f5 {[%emt 0:05:36]} 22. gxf5 {[%emt 0:06:10]} Bxf5 {[%emt 0:02:49]} 23. Neg3 {[%emt 0:00:14]} Bg6 {[%emt 0:04:59]} 24. Nf6+ {[%emt 0:00:31]} Bxf6 {[%emt 0:00:56]} 25. exf6 {[%emt 0:00:02]} d5 {[%emt 0:04:58]} 26. Qf2 {[%emt 0:09:02]} Nd4 {[%emt 0:02:37]} 27. f5 {[%emt 0:00:28]} Qxg3 {[%emt 0:00:23]} 28. Qxg3 {[%emt 0:00:02]} Ne2+ {[%emt 0:00:40]} 29. Kh2 {[%emt 0:00:02]} Nxg3 {[%emt 0:00:54]} 30. fxg6+ {[%emt 0:00:08]} Kxg6 {[%emt 0:00:39]} 31. Kxg3 {[%emt 0:00:03]} Re3+ {[%emt 0:00:57]} 32. Rf3 {[%emt 0:00:18]} Rae8 {[%emt 0:02:46]} 33. Rxe3 {[%emt 0:00:09]} Rxe3+ {[%emt 0:00:15]} 34. Kf4 {[%emt 0:00:40]} d4 {[%emt 0:01:11]} 35. Bxb7 {[%emt 0:00:05]} Rxh3 {[%emt 0:00:54]} 36. Bf3 {[%emt 0:02:13]} Kxf6 {[%emt 0:03:24]} 37. Rf1 {[%emt 0:02:25]} Rh2 {[%emt 0:00:34]} 38. Kg3 {[%emt 0:00:02]} Rd2 {[%emt 0:00:17]} 39. Be4+ {[%emt 0:00:18]} Ke5 {[%emt 0:01:20]} 40. Bd3 {[%emt 0:00:05]} f6 {[%emt 0:00:06]} 41. Rf5+ {[%emt 0:00:12]} 1-0

[Event "Israeli Open Championship 2019"]
[Site "Jerusalem"]
[Date "2019.12.12"]
[Round "1.16"]
[White "Elsner, Yair"]
[Black "Tifferet, Shaked"]
[Result "0-1"]
[ECO "A50"]
[WhiteElo "1585"]
[BlackElo "2232"]
[Annotator "ChessBase"]
[PlyCount "50"]
[EventDate "2019.12.12"]
[EventType "swiss"]
[EventCountry "ISR"]
[SourceTitle "playchess.com"]
[Source "ChessBase"]
[SourceQuality "1"]
[TimeControl "5400+30"]

1. Nf3 {[%emt 0:00:00]} Nf6 {[%emt 0:00:00]} 2. c4 {[%emt 0:00:00]} g6 {[%emt 0:00:37]} 3. d4 {[%emt 0:00:30]} Bg7 {[%emt 0:00:08]} 4. g3 {[%emt 0:00:21]} b6 {[%emt 0:00:33]} 5. Bg2 {[%emt 0:00:11]} Bb7 {[%emt 0:00:07]} 6. O-O {[%emt 0:00:13]} O-O {[%emt 0:00:07]} 7. Re1 {[%emt 0:00:25]} e6 {[%emt 0:01:33]} 8. Bg5 {[%emt 0:09:59]} h6 {[%emt 0:04:21]} 9. Bf4 {[%emt 0:00:23]} d6 {[%emt 0:02:40]} 10. Nc3 {[%emt 0:06:31]} Ne4 {[%emt 0:01:22]} 11. Nxe4 {[%emt 0:00:29]} Bxe4 {[%emt 0:00:12]} 12. Qd2 {[%emt 0:00:50]} g5 {[%emt 0:01:46]} 13. Be3 {[%emt 0:00:18]} f5 {[%emt 0:02:31]} 14. Red1 {[%emt 0:11:03]} Nd7 {[%emt 0:04:49]} 15. h4 {[%emt 0:02:43]} f4 {[%emt 0:15:20]} 16. gxf4 {[%emt 0:00:46]} gxh4 {[%emt 0:01:44]} 17. f5 {[%emt 0:17:29]} Rxf5 {[%emt 0:20:08]} 18. Bxh6 {[%emt 0:01:45]} Rh5 {[%emt 0:05:30]} 19. Bxg7 {[%emt 0:06:04]} h3 {[%emt 0:00:35]} 20. Bh1 {[%emt 0:01:34]} h2+ {[%emt 0:02:20]} 21. Kg2 {[%emt 0:01:52]} Qh4 {[%emt 0:04:09]} 22. Kf1 {[%emt 0:03:03]} Qg4 {[%emt 0:00:08]} 23. Nxh2 {[%emt 0:02:39]} Rxh2 {[%emt 0:01:04]} 24. Bxe4 {[%emt 0:00:15]} Qxe4 {[%emt 0:00:29]} 25. f3 {[%emt 0:00:29]} Qh4 {[%emt 0:30:17] Ke1} 0-1

[Event "Israeli Open Championship 2019"]
[Site "Jerusalem"]
[Date "2019.12.12"]
[Round "1.17"]
[White "Shtemler, Lavi"]
[Black "Klein, Achi"]
[Result "1-0"]
[ECO "D79"]
[WhiteElo "2181"]
[BlackElo "1622"]
[Annotator "ChessBase"]
[PlyCount "37"]
[EventDate "2019.12.12"]
[EventType "swiss"]
[EventCountry "ISR"]
[SourceTitle "playchess.com"]
[Source "ChessBase"]
[SourceQuality "1"]
[TimeControl "5400+30"]

1. g3 {[%emt 0:11:34]} Nf6 {[%emt 0:00:00]} 2. Bg2 {[%emt 0:00:13]} g6 {[%emt 0:00:00]} 3. Nf3 {[%emt 0:00:33]} Bg7 {[%emt 0:00:11]} 4. c4 {[%emt 0:00:11]} O-O {[%emt 0:00:41]} 5. Nc3 {[%emt 0:00:15]} c6 {[%emt 0:01:32]} 6. O-O {[%emt 0:03:29]} d5 {[%emt 0:02:01]} 7. cxd5 {[%emt 0:00:19]} cxd5 {[%emt 0:00:59]} 8. d4 {[%emt 0:00:04]} e6 {[%emt 0:02:30]} 9. Bf4 {[%emt 0:01:22]} a6 {[%emt 0:02:41]} 10. Qb3 {[%emt 0:09:51]} Nc6 {[%emt 0:03:50]} 11. Rfd1 {[%emt 0:01:24]} h6 {[%emt 0:06:18]} 12. Ne5 {[%emt 0:01:47]} Nxe5 {[%emt 0:04:33]} 13. Bxe5 {[%emt 0:00:21]} Ne8 {[%emt 0:06:09]} 14. Rac1 {[%emt 0:06:26]} Bxe5 {[%emt 0:01:53]} 15. dxe5 {[%emt 0:01:13]} Qe7 {[%emt 0:09:08]} 16. e4 {[%emt 0:13:00]} dxe4 {[%emt 0:01:56]} 17. Nxe4 {[%emt 0:00:58]} Rb8 {[%emt 0:02:55]} 18. Qb6 {[%emt 0:01:14]} h5 {[%emt 0:13:57]} 19. Qa7 {[%emt 0:00:53]} 1-0

[Event "Israeli Open Championship 2019"]
[Site "Jerusalem"]
[Date "2019.12.12"]
[Round "1.18"]
[White "Golberg, Igor"]
[Black "Tadmor, Maya"]
[Result "1-0"]
[ECO "D85"]
[WhiteElo "2156"]
[BlackElo "1599"]
[Annotator "ChessBase"]
[PlyCount "51"]
[EventDate "2019.12.12"]
[EventType "swiss"]
[EventCountry "ISR"]
[SourceTitle "playchess.com"]
[Source "ChessBase"]
[SourceQuality "1"]
[TimeControl "5400+30"]

1. d4 {[%emt 0:10:33]} Nf6 {[%emt 0:00:00]} 2. c4 {[%emt 0:00:09]} g6 {[%emt 0:00:07]} 3. Nc3 {[%emt 0:00:06]} d5 {[%emt 0:00:15]} 4. cxd5 {[%emt 0:00:06]} Nxd5 {[%emt 0:00:14]} 5. e4 {[%emt 0:00:03]} Nxc3 {[%emt 0:00:14]} 6. bxc3 {[%emt 0:00:06]} Bg7 {[%emt 0:00:30]} 7. Nf3 {[%emt 0:00:03]} c5 {[%emt 0:00:41]} 8. Rb1 {[%emt 0:00:06]} O-O {[%emt 0:02:07]} 9. Qd2 {[%emt 0:00:04]} Qc7 {[%emt 0:07:15]} 10. Be2 {[%emt 0:00:29]} Rd8 {[%emt 0:03:52]} 11. O-O {[%emt 0:00:40]} cxd4 {[%emt 0:01:49]} 12. cxd4 {[%emt 0:00:08]} Nc6 {[%emt 0:01:10]} 13. Bb2 {[%emt 0:00:39]} Nxd4 {[%emt 0:08:57]} 14. Bxd4 {[%emt 0:00:25]} e5 {[%emt 0:01:57]} 15. Qc3 {[%emt 0:00:47]} Qe7 {[%emt 0:05:59]} 16. Bxe5 {[%emt 0:00:10]} Bxe5 {[%emt 0:01:16]} 17. Qxe5 {[%emt 0:00:02]} Qxe5 {[%emt 0:01:50]} 18. Nxe5 {[%emt 0:00:02]} Re8 {[%emt 0:00:37]} 19. f4 {[%emt 0:00:12]} f6 {[%emt 0:01:48]} 20. Ng4 {[%emt 0:02:01]} Bxg4 {[%emt 0:03:38]} 21. Bxg4 {[%emt 0:00:01]} Rxe4 {[%emt 0:00:42]} 22. Rxb7 {[%emt 0:00:08]} f5 {[%emt 0:02:35]} 23. Bf3 {[%emt 0:00:50]} Ree8 {[%emt 0:02:09]} 24. Rd1 {[%emt 0:00:19]} Red8 {[%emt 0:08:59]} 25. Rxd8+ {[%emt 0:00:06]} Rxd8 {[%emt 0:00:08]} 26. Rxa7 {[%emt 0:00:04]} 1-0

[Event "Israeli Open Championship 2019"]
[Site "Jerusalem"]
[Date "2019.12.13"]
[Round "2.9"]
[White "Birnboim, Nathan"]
[Black "Slonimskij, Arkadij"]
[Result "1-0"]
[ECO "B06"]
[WhiteElo "2393"]
[BlackElo "2133"]
[Annotator "RC"]
[PlyCount "66"]
[EventDate "2019.12.12"]
[EventType "swiss"]
[EventCountry "ISR"]
[SourceTitle "playchess.com"]
[Source "ChessBase"]
[SourceQuality "1"]
[TimeControl "5400+30"]

1. d4 {[%emt 0:02:28]} g6 {[%emt 0:00:00]} 2. e4 {[%emt 0:00:32]} Bg7 {[%emt 0:00:00]} 3. Nf3 {[%emt 0:00:45]} d6 {[%emt 0:04:05]} 4. Nc3 {[%emt 0:01:22]} Nd7 {[%emt 0:01:59]} 5. Bc4 {[%emt 0:06:24]} c6 {[%emt 0:02:59]} 6. O-O {[%emt 0:01:11]} Nb6 {[%emt 0:02:29]} 7. Bb3 {[%emt 0:01:16]} d5 {[%emt 0:03:25]} 8. h3 {[%emt 0:01:18]} e6 {[%emt 0:02:06]} 9. Bg5 {[%emt 0:01:51]} Ne7 {[%emt 0:00:39]} 10. Re1 {[%emt 0:00:26]} h6 {[%emt 0:05:13]} 11. Bh4 {[%emt 0:02:37]} g5 {[%emt 0:02:08]} 12. Bg3 {[%emt 0:00:07]} a5 {[%emt 0:05:51]} 13. a4 {[%emt 0:01:29]} f5 {[%emt 0:04:32]} 14. exf5 {[%emt 0:07:59]} Nxf5 {[%emt 0:00:32]} 15. Ne2 {[%emt 0:03:13]} O-O {[%emt 0:01:19]} 16. c3 {[%emt 0:00:39]} Nd7 {[%emt 0:00:31]} 17. Bc2 {[%emt 0:01:51]} Nf6 {[%emt 0:03:01]} 18. Ne5 {[%emt 0:02:07]} Ne4 {[%emt 0:01:48]} 19. Bxe4 {[%emt 0:07:23]} dxe4 {[%emt 0:00:30]} 20. Bh2 {[%emt 0:02:40]} e3 {[%emt 0:14:42]} 21. fxe3 {[%emt 0:12:25]} Nxe3 {[%emt 0:00:26]} 22. Qd3 {[%emt 0:00:29]} Nf5 {[%emt 0:00:19]} 23. Ng3 {[%emt 0:05:47]} Bxe5 {[%emt 0:07:27]} 24. Rxe5 {[%emt 0:00:13]} Bd7 {[%emt 0:00:19]} 25. Rae1 {[%emt 0:01:19]} Rf7 {[%emt 0:05:37]} 26. Qe2 {[%emt 0:10:59]} Ng7 {[%emt 0:05:09]} 27. Ne4 {[%emt 0:01:22]} Qf8 {[%emt 0:01:48]} 28. h4 {[%emt 0:05:27]} gxh4 {[%emt 0:01:01]} 29. Qg4 {[%emt 0:00:27]} Kh8 {[%emt 0:04:44]} 30. Qg6 {[%emt 0:06:04]} Nf5 {[%emt 0:00:44]} 31. Rxf5 {[%emt 0:03:57]} Rxf5 {[%emt 0:00:25]} 32. Nd6 {[%emt 0:00:18]} h3 {[%emt 0:16:55]} 33. Nxf5 {[%emt 0:00:40]} Qd8 {[%emt 0:03:47]} 1-0

[Event "Israeli Open Championship 2019"]
[Site "Jerusalem"]
[Date "2019.12.13"]
[Round "2.10"]
[White "Tsirilman, Guy"]
[Black "Iliaguev, Nisim"]
[Result "0-1"]
[ECO "A07"]
[WhiteElo "1975"]
[BlackElo "2275"]
[Annotator "RC"]
[PlyCount "102"]
[EventDate "2019.12.12"]
[EventType "swiss"]
[EventCountry "ISR"]
[SourceTitle "playchess.com"]
[Source "ChessBase"]
[SourceQuality "1"]
[TimeControl "5400+30"]

1. Nf3 {[%emt 0:00:10]} Nf6 {[%emt 0:00:31]} 2. g3 {[%emt 0:00:21]} d5 {[%emt 0:05:01]} 3. Bg2 {[%emt 0:01:21]} Bf5 {[%emt 0:01:10]} 4. O-O {[%emt 0:00:51]} e6 {[%emt 0:00:13]} 5. d3 {[%emt 0:01:40]} Be7 {[%emt 0:01:29]} 6. Nbd2 {[%emt 0:01:22]} O-O {[%emt 0:00:43]} 7. Nh4 {[%emt 0:06:10]} Bg4 {[%emt 0:02:10]} 8. h3 {[%emt 0:04:55]} Bh5 {[%emt 0:00:05]} 9. g4 {[%emt 0:01:59]} Nfd7 {[%emt 0:00:19]} 10. Nf5 {[%emt 0:02:57]} exf5 {[%emt 0:00:07]} 11. gxh5 {[%emt 0:00:14]} Nc5 {[%emt 0:22:17]} 12. Nb3 {[%emt 0:05:07]} Ne6 {[%emt 0:01:03]} 13. e3 {[%emt 0:02:07]} c6 {[%emt 0:02:31]} 14. Nd4 {[%emt 0:01:51]} Nxd4 {[%emt 0:01:51]} 15. exd4 {[%emt 0:00:09]} Bg5 {[%emt 0:01:27]} 16. Qf3 {[%emt 0:01:38]} Bxc1 {[%emt 0:00:20]} 17. Raxc1 {[%emt 0:00:08]} Qg5 {[%emt 0:00:08]} 18. c4 dxc4 {[%emt 0:02:15]} 19. dxc4 {[%emt 1:06:30]} Nd7 20. Qg3 {[%emt 0:00:00]} Qxh5 {[%emt 0:01:54]} 21. d5 {[%emt 0:00:00]} Rac8 {[%emt 0:06:05]} 22. dxc6 {[%emt 0:00:00]} bxc6 {[%emt 0:00:02]} 23. Qd6 {[%emt 0:00:00]} Nf6 {[%emt 0:00:22]} 24. Rcd1 {[%emt 0:00:00]} Qe2 {[%emt 0:10:49]} 25. b3 {[%emt 0:00:00]} Qxa2 {[%emt 0:00:58]} 26. Qd3 {[%emt 0:00:00]} Qa5 {[%emt 0:07:39]} 27. Ra1 {[%emt 0:00:00]} Qb6 {[%emt 0:01:17]} 28. Qxf5 {[%emt 0:00:00]} Qxb3 {[%emt 0:00:11]} 29. Qc5 {[%emt 0:00:00]} Rc7 {[%emt 0:10:58]} 30. Ra3 {[%emt 0:00:00]} Qb6 {[%emt 0:01:32]} 31. Qxb6 {[%emt 0:00:00]} axb6 {[%emt 0:00:01]} 32. Ra6 {[%emt 0:00:00]} Rb8 {[%emt 0:00:20]} 33. Rb1 {[%emt 0:00:00]} Nd7 {[%emt 0:00:35]} 34. Rd1 {[%emt 0:00:00]} g6 {[%emt 0:01:32]} 35. Rd6 {[%emt 0:00:00]} Ne5 {[%emt 0:00:54]} 36. Ra4 {[%emt 0:00:00]} b5 {[%emt 0:06:17]} 37. Rb4 {[%emt 0:00:00]} Nxc4 {[%emt 0:01:56]} 38. Rxc6 {[%emt 0:00:00]} Rxc6 {[%emt 0:00:13]} 39. Bxc6 {[%emt 0:00:00]} Nd6 {[%emt 0:00:03]} 40. Rd4 {[%emt 0:00:00]} Nf5 {[%emt 0:00:07]} 41. Rb4 {[%emt 0:00:00]} Rb6 {[%emt 0:00:10]} 42. Bd5 {[%emt 0:00:00]} Kg7 {[%emt 0:01:17]} 43. f4 {[%emt 0:00:00]} Nd6 {[%emt 0:01:58]} 44. Kf2 {[%emt 0:00:00]} Ra6 {[%emt 0:00:26]} 45. Rb3 {[%emt 0:00:00]} Ra4 {[%emt 0:00:17]} 46. Kf3 {[%emt 0:00:00]} Kf6 {[%emt 0:02:49]} 47. Bc6 {[%emt 0:00:00]} Ra5 {[%emt 0:01:32]} 48. h4 {[%emt 0:00:00]} h5 {[%emt 0:00:10]} 49. Bd7 {[%emt 0:00:00]} Ke7 {[%emt 0:00:18]} 50. Bc6 {[%emt 0:00:00]} Nf5 {[%emt 0:00:20]} 51. Rb4 {[%emt 0:00:00]} Kd6 {[%emt 0:01:28]} 0-1

[Event "Israeli Open Championship 2019"]
[Site "Jerusalem"]
[Date "2019.12.13"]
[Round "2.11"]
[White "Gorodetzky, Matan"]
[Black "Kunin, Michael"]
[Result "1-0"]
[ECO "C09"]
[WhiteElo "2284"]
[BlackElo "2102"]
[Annotator "RC"]
[PlyCount "89"]
[EventDate "2019.12.12"]
[EventType "swiss"]
[EventCountry "ISR"]
[SourceTitle "playchess.com"]
[Source "ChessBase"]
[SourceQuality "1"]
[TimeControl "5400+30"]

1. e4 {[%emt 0:00:00]} c5 {[%emt 0:00:00]} 2. Nf3 {[%emt 0:00:17]} e6 {[%emt 0:00:01]} 3. c3 {[%emt 0:00:14]} d5 {[%emt 0:00:25]} 4. exd5 {[%emt 0:00:21]} exd5 {[%emt 0:00:10]} 5. d4 {[%emt 0:00:31]} Bd6 {[%emt 0:00:30]} 6. Bb5+ {[%emt 0:00:34]} Nc6 {[%emt 0:01:02]} 7. O-O {[%emt 0:00:48]} Nge7 {[%emt 0:00:10]} 8. dxc5 {[%emt 0:01:09]} Bxc5 {[%emt 0:00:10]} 9. Nbd2 {[%emt 0:00:26]} Bg4 {[%emt 0:01:33]} 10. Nb3 {[%emt 0:09:32]} Bb6 {[%emt 0:01:27]} 11. Re1 {[%emt 0:02:30]} O-O {[%emt 0:00:41]} 12. h3 {[%emt 0:03:45]} Bh5 {[%emt 0:01:37]} 13. Be3 {[%emt 0:05:23]} Bxe3 {[%emt 0:12:41]} 14. Rxe3 {[%emt 0:00:09]} Nf5 {[%emt 0:03:46]} 15. Re1 {[%emt 0:02:02]} Nd6 {[%emt 0:10:08]} 16. Be2 {[%emt 0:16:22]} Nc4 {[%emt 0:02:43]} 17. g4 {[%emt 0:08:42]} Bg6 {[%emt 0:00:22]} 18. Bxc4 {[%emt 0:01:12]} dxc4 {[%emt 0:00:08]} 19. Qxd8 {[%emt 0:07:40]} Raxd8 {[%emt 0:00:34]} 20. Nbd4 {[%emt 0:00:21]} Nxd4 {[%emt 0:00:27]} 21. Nxd4 {[%emt 0:00:15]} Rfe8 {[%emt 0:01:54]} 22. f3 {[%emt 0:03:46]} Kf8 {[%emt 0:00:43]} 23. Kf2 {[%emt 0:00:40]} a6 {[%emt 0:03:15]} 24. Rxe8+ {[%emt 0:03:38]} Rxe8 {[%emt 0:05:43]} 25. Re1 {[%emt 0:00:26]} Rxe1 {[%emt 0:03:10]} 26. Kxe1 {[%emt 0:00:02]} Bb1 {[%emt 0:04:48]} 27. a3 {[%emt 0:00:59]} g5 {[%emt 0:03:24]} 28. Kf2 {[%emt 0:02:45]} Ke7 {[%emt 0:00:19]} 29. Ke3 {[%emt 0:00:42]} Kd6 {[%emt 0:00:30]} 30. f4 {[%emt 0:02:23]} h6 {[%emt 0:09:53]} 31. Nf3 {[%emt 0:27:56]} f6 {[%emt 0:33:16]} 32. h4 {[%emt 0:00:00]} gxh4 {[%emt 0:00:00]} 33. Nxh4 {[%emt 0:00:00]} Kd5 {[%emt 0:00:00]} 34. f5 {[%emt 0:00:00]} Bc2 {[%emt 0:00:00]} 35. Ng6 {[%emt 0:00:00]} b5 {[%emt 0:00:00]} 36. Kf4 {[%emt 0:00:00]} a5 {[%emt 0:00:00]} 37. Ne7+ {[%emt 0:00:00]} Kc5 {[%emt 0:00:00]} 38. Ng8 {[%emt 0:00:00]} b4 {[%emt 0:00:00]} 39. axb4+ {[%emt 0:00:00]} axb4 {[%emt 0:00:00]} 40. Nxf6 {[%emt 0:00:00]} bxc3 {[%emt 0:02:15]} 41. bxc3 {[%emt 0:00:00]} Kb5 {[%emt 0:01:09]} 42. Ne4 {[%emt 0:00:00]} Kc6 {[%emt 0:00:45]} 43. Ke5 {[%emt 0:00:00]} Bd1 {[%emt 0:00:21]} 44. Nf2 {[%emt 0:00:00]} Kd7 {[%emt 0:00:52]} 45. Nxd1 {[%emt 0:00:00]} 1-0